bitfinex/quotes_ETHUSD_20240604
["timestamp","ask_amount","ask_price","bid_price","bid_amount"]
[1717498771816,2.65441,3767.4,3767.2,0.804]
[1717498772318,2.65441,3767.4,3767.3,0.07960262]
[1717498772678,2.65441,3767.4,3767.2,0.804]
[1717498772884,2.65441,3767.4,3767.3,0.07960262]
[1717498773213,2.65441,3767.4,3767.2,0.804]
[1717498773522,2.65441,3767.4,3767.3,0.07960262]
[1717498773907,2.65441,3767.4,3767.2,0.804]
[1717498774421,2.65441,3767.4,3767.3,0.07960262]
[1717498774833,2.65441,3767.4,3767.2,0.804]
[1717498775147,2.65441,3767.4,3767.3,0.07960262]
[1717498775678,2.65441,3767.4,3767.2,0.804]
[1717498775882,2.65441,3767.4,3767.3,0.07960262]
[1717498776084,2.65441,3767.4,3767.2,0.804]
[1717498776400,2.65441,3767.4,3767.3,0.07960262]
[1717498776713,2.65441,3767.4,3767.2,0.804]
[1717498777015,2.65441,3767.4,3767.3,0.07960262]
[1717498777201,2.65441,3767.4,3767.2,0.804]
[1717498777414,2.65441,3767.4,3767.3,0.07960262]
[1717498778140,2.65441,3767.4,3767.2,0.804]
[1717498778341,2.65441,3767.4,3767.3,0.07960262]
[1717498778704,2.65441,3767.4,3767.2,0.804]
[1717498778920,2.65441,3767.4,3767.3,0.07960262]
[1717498779319,2.65441,3767.4,3767.2,0.804]
[1717498779514,2.65441,3767.4,3767.3,0.07960262]
[1717498779951,2.65441,3767.4,3767.2,0.804]
[1717498780254,2.65441,3767.4,3767.3,0.07960262]
[1717498780550,2.65441,3767.4,3767.2,0.804]
[1717498780849,2.65441,3767.4,3767.3,0.07960262]
[1717498781070,2.65441,3767.4,3767.2,0.804]
[1717498781349,2.65441,3767.4,3767.3,0.07960262]
[1717498781712,2.65441,3767.4,3767.2,0.804]
[1717498781908,2.65441,3767.4,3767.3,0.07960262]
[1717498782234,2.65441,3767.4,3767.2,0.804]
[1717498782435,2.65441,3767.4,3767.3,0.07960262]
[1717498782751,2.65441,3767.4,3767.2,0.804]
[1717498782955,2.65441,3767.4,3767.3,0.07960262]
[1717498783323,2.65441,3767.4,3767.2,0.804]
[1717498783531,2.65441,3767.4,3767.3,0.07960262]
[1717498783934,2.65441,3767.4,3767.2,0.804]
[1717498784120,2.65441,3767.4,3767.3,0.07964878]
[1717498784521,2.65441,3767.4,3767.2,0.804]
[1717498784763,2.65441,3767.4,3767.3,0.07964878]
[1717498785139,2.65441,3767.4,3767.2,0.804]
[1717498785434,2.65441,3767.4,3767.3,0.07964878]
[1717498785665,2.65441,3767.4,3767.2,0.804]
[1717498785961,2.65441,3767.4,3767.3,0.07699536]
[1717498786319,2.65441,3767.4,3767.2,0.804]
[1717498786526,2.65441,3767.4,3767.3,0.07699536]
[1717498786862,2.65441,3767.4,3767.2,0.804]
[1717498787061,2.65441,3767.4,3767.3,0.07699536]
[1717498787224,2.65441,3767.4,3767.2,0.804]
[1717498787659,2.65441,3767.4,3767.3,0.07699536]
[1717498787848,2.65441,3767.4,3767.2,0.804]
[1717498788045,2.65441,3767.4,3767.3,0.07699536]
[1717498788359,2.65441,3767.4,3767.2,0.804]
[1717498788555,2.65441,3767.4,3767.3,0.07699536]
[1717498789222,2.65441,3767.4,3767.2,0.804]
[1717498789563,2.65441,3767.4,3767.3,0.07699536]
[1717498789924,2.65441,3767.4,3767.2,0.804]
[1717498790134,2.65441,3767.4,3767.3,0.07699536]
[1717498790565,2.65441,3767.4,3767.2,0.804]
[1717498790760,2.65441,3767.4,3767.3,0.07699536]
[1717498791189,2.65441,3767.4,3767.2,0.804]
[1717498791393,2.65441,3767.4,3767.3,0.07699536]
[1717498791760,2.65441,3767.4,3767.2,0.804]
[1717498792076,2.65441,3767.4,3767.3,0.07699536]
[1717498792409,2.65441,3767.4,3767.2,0.804]
[1717498792569,2.65441,3767.4,3767.3,0.07696179]
[1717498792897,2.65441,3767.4,3767.2,0.804]
[1717498793197,2.65441,3767.4,3767.3,0.07696179]
[1717498793406,2.65441,3767.4,3767.3,0.99942278]
[1717498793608,2.65441,3767.4,3767.3,0.92246099]
[1717498793776,2.65441,3767.4,3767.3,0.99942278]
[1717498795312,2.65441,3767.4,3767.3,0.07696179]
[1717498795488,2.65441,3767.4,3767.3,0.99944125]
[1717498803304,2.65412,3767.8,3767.7,1.72641403]
[1717498804099,2.65412,3767.8,3767.7,2.32364933]
[1717498804782,2.65412,3767.8,3767.7,3.70718914]
[1717498804984,2.65412,3767.8,3767.7,2.32364933]
[1717498805698,2.65385,3768.2,3767.7,3.70714579]
[1717498805904,2.65385,3768.2,3767.9,0.804]
[1717498806294,2.4762,3769.0,3768.1,0.804]
[1717498806654,2.65352,3768.6,3768.5,0.804]
[1717498808492,2.65352,3768.6,3768.3,0.804]
[1717498809188,2.65352,3768.6,3768.5,0.804]
[1717498816871,2.2813,3769.3,3768.5,0.804]
[1717498816872,2.65328,3769.0,3768.5,0.804]
[1717498817080,2.65328,3769.0,3768.9,0.804]
[1717498817581,2.653,3769.4,3768.9,0.804]
[1717498817731,2.653,3769.4,3769.2,0.804]
[1717498819466,5.3,3769.5,3769.2,0.804]
[1717498819651,5.3,3769.5,3769.4,0.804]
[1717498824370,5.3,3769.5,3769.4,1.12823]
[1717498831544,5.3,3769.5,3768.7,7.32]
[1717498831747,2.3967,3769.4,3768.7,7.32]
[1717498832349,2.3967,3769.4,3768.8,0.804]
[1717498832743,2.65331,3768.9,3768.8,0.804]
[1717498836497,2.65308,3769.3,3768.8,0.804]
[1717498836792,2.65308,3769.3,3769.2,0.804]
[1717498837858,2.65308,3769.3,3768.8,2.3168]
[1717498838051,2.65308,3769.3,3769.2,0.804]
[1717498842706,5.3,3769.5,3769.2,0.804]
[1717498842911,5.3,3769.5,3769.4,0.804]
[1717498845926,5.3,3769.5,3769.4,3.0998]
[1717498849111,5.3,3769.5,3769.4,0.804]
[1717498859522,2.6528,3769.6,3769.4,0.804]
[1717498861661,2.6528,3769.6,3769.4,1.1247]
[1717498863746,2.6526,3769.9,3769.5,2.3697]
[1717498863948,2.6526,3769.9,3769.8,0.804]
[1717498864557,2.6526,3769.9,3769.5,3.75256056]
[1717498864756,2.6526,3769.9,3769.8,0.804]
[1717498866258,2.6526,3769.9,3769.8,0.86462297]
[1717498867638,2.65238,3770.2,3769.8,0.86462297]
[1717498867974,2.65238,3770.2,3770.1,0.804]
[1717498868328,2.65238,3770.2,3770.1,0.86450171]
[1717498877078,0.0958999,3770.4,3770.1,0.86450171]
[1717498877276,0.0958999,3770.4,3770.3,0.804]
[1717498877479,0.0958999,3770.4,3770.3,0.86427592]
[1717498883653,0.0958999,3770.4,3770.3,0.06027592]
[1717498883952,0.0958999,3770.4,3770.1,1.11908017]
[1717498884153,0.0958999,3770.4,3770.2,0.06027592]
[1717498895355,0.0958999,3770.4,3770.2,0.37533351]
[1717498898471,0.0958999,3770.4,3770.3,0.804]
[1717498898809,0.0958999,3770.4,3770.3,0.86422992]
[1717498900275,0.0958999,3770.4,3770.3,0.06022992]
[1717498900574,0.0958999,3770.4,3770.1,0.804]
[1717498900781,0.0958999,3770.4,3770.2,0.06003346]
[1717498903830,2.7481899,3770.4,3770.2,0.06003346]
[1717498904124,2.7481899,3770.4,3769.9,0.804]
[1717498904347,2.7481899,3770.4,3770.0,0.06003346]
[1717498904620,2.7481899,3770.4,3770.0,0.98174825]
[1717498904786,2.7481899,3770.4,3770.0,0.06003346]
[1717498905521,2.7481899,3770.4,3770.1,0.92171588]
[1717498905902,2.7481899,3770.4,3770.2,0.06003346]
[1717498906084,2.7481899,3770.4,3769.9,2.18656782]
[1717498906284,2.7481899,3770.4,3770.0,0.06003346]
[1717498906530,2.7481899,3770.4,3770.1,0.92171535]
[1717498907030,2.7481899,3770.4,3770.2,0.06003346]
[1717498907528,2.7481899,3770.4,3770.3,0.06003346]
[1717498907707,2.7481899,3770.4,3769.9,2.85418669]
[1717498908032,2.7481899,3770.4,3770.0,2.36431616]
[1717498908234,2.7481899,3770.4,3770.1,0.92171488]
[1717498908385,2.7481899,3770.4,3770.0,1.44260128]
[1717498908586,2.7481899,3770.4,3770.1,0.92171343]
[1717498908786,2.7481899,3770.4,3770.1,0.06003346]
[1717498909027,2.7481899,3770.4,3770.1,1.29660635]
[1717498909525,2.7481899,3770.4,3770.2,0.92168365]
[1717498909702,2.7481899,3770.4,3770.1,2.61914071]
[1717498910000,2.7481899,3770.4,3770.2,0.98171708]
[1717498910201,2.7481899,3770.4,3770.2,0.06003346]
[1717498912310,5.2194899,3770.4,3770.2,0.06003346]
[1717498914491,2.65245,3770.1,3769.9,0.804]
[1717498914692,2.65245,3770.1,3770.0,0.06005854]
[1717498918507,2.65245,3770.1,3770.0,0.28473192]
[1717498918740,2.7481499,3770.4,3770.0,0.28473192]
[1717498918937,2.7481499,3770.4,3770.3,0.804]
[1717498919438,2.7481499,3770.4,3770.3,0.86414632]
[1717498921448,2.7481499,3770.4,3770.3,0.06014632]
[1717498921743,2.65246,3770.1,3769.9,1.38261615]
[1717498921911,2.65266,3769.8,3769.7,1.38263835]
[1717498922121,2.65266,3769.8,3769.7,0.92180787]
[1717498922544,2.65266,3769.8,3769.6,0.804]
[1717498925152,2.65294,3769.4,3769.3,0.54982878]
[1717498925856,2.65294,3769.4,3769.3,0.804]
[1717498927352,2.65294,3769.4,3769.3,0.86419232]
[1717498931354,0.0958999,3770.4,3769.4,2.3712]
[1717498931534,2.7481299,3770.4,3770.3,0.804]
[1717498934248,2.7481299,3770.4,3770.3,0.86420904]
[1717498938856,2.7481299,3770.4,3770.3,0.06020904]
[1717498939158,2.7481299,3770.4,3769.9,0.804]
[1717498939657,2.7481299,3770.4,3770.0,0.05997911]
[1717498943560,2.65244,3770.2,3770.0,0.05997911]
[1717498943753,2.65244,3770.2,3769.9,0.804]
[1717498943959,2.65244,3770.2,3770.1,0.05997911]
[1717498944450,2.65244,3770.2,3769.8,0.804]
[1717498944650,2.65244,3770.2,3770.1,0.05997911]
[1717498944895,2.65244,3770.2,3769.6,7.32]
[1717498945091,2.65244,3770.2,3770.1,0.05997911]
[1717498945389,2.65244,3770.2,3770.1,0.05999165]
[1717498945762,2.65258,3770.0,3769.7,0.804]
[1717498949400,2.65258,3770.0,3769.9,0.804]
[1717498951819,2.65232,3770.3,3769.9,3.2258]
[1717498952003,2.65232,3770.3,3770.1,0.804]
[1717498954079,2.65232,3770.3,3770.0,0.32258]
[1717498954394,2.65232,3770.3,3770.0,1.12658]
[1717498957143,2.65232,3770.3,3770.1,0.06012542]
[1717498957820,2.65232,3770.3,3770.2,0.804]
[1717498958231,2.65232,3770.3,3770.2,0.86412542]
[1717498961303,2.65232,3770.3,3770.2,0.06012542]
[1717498961497,2.65232,3770.3,3770.0,1.12658]
[1717498961707,2.65232,3770.3,3770.2,0.06012542]
[1717498962028,2.65232,3770.3,3770.0,1.12658]
[1717498962621,2.65232,3770.3,3770.1,0.06012542]
[1717498968322,2.65232,3770.3,3770.2,0.804]
[1717498968542,2.65232,3770.3,3770.2,0.86402092]
[1717498972394,2.65232,3770.3,3770.2,0.06002092]
[1717498972598,2.65232,3770.3,3770.1,0.804]
[1717498972797,2.65232,3770.3,3770.2,0.06002092]
[1717498975829,2.65251,3770.0,3769.9,1.38258541]
[1717498976018,2.65251,3770.0,3769.9,0.98183099]
[1717498976628,5.348861,3770.0,3769.9,0.98183099]
[1717498976828,5.348861,3770.0,3769.4,1.3827261]
[1717498976829,5.0837,3769.9,3769.4,1.3827261]
[1717498977125,5.0837,3769.9,3768.8,7.87245266]
[1717498977126,2.65324,3769.0,3768.8,7.87245266]
[1717498977332,2.65324,3769.0,3768.8,0.55245266]
[1717498977734,2.65324,3769.0,3768.7,1.38300043]
[1717498978114,2.6535,3768.6,3768.3,2.66874442]
[1717498978307,2.6535,3768.6,3766.9,5.05250775]
[1717498978308,2.65399,3767.9,3767.4,2.20791255]
[1717498978642,2.65399,3767.9,3766.7,1.65914332]
[1717498978643,2.65406,3767.9,3767.7,0.804]
[1717498978843,2.65406,3767.9,3766.8,3.71470978]
[1717498979044,2.65406,3767.9,3766.8,2.3311]
[1717498979243,2.65406,3767.9,3767.3,0.804]
[1717498979906,2.65406,3767.9,3766.9,0.4539453]
[1717498982444,3.16988863,3768.6,3766.9,0.4539453]
[1717498982445,2.65428,3767.5,3766.9,0.4539453]
[1717498982644,2.65428,3767.5,3766.8,2.3311]
[1717498983048,2.654,3767.9,3767.0,1.928]
[1717498983215,2.654,3767.9,3767.4,1.928]
[1717498983417,2.65373,3768.3,3767.5,0.053078]
[1717498983615,2.65373,3768.3,3767.4,36.928]
[1717498983951,2.65373,3768.3,3767.5,2.65030545]
[1717498984342,2.65373,3768.3,3767.6,0.0435566]
[1717498987560,2.65373,3768.3,3767.7,2.3875]
[1717498987859,2.65373,3768.3,3767.8,0.04412304]
[1717498988016,2.65373,3768.3,3767.7,2.3875]
[1717498988222,2.65373,3768.3,3767.8,0.04412304]
[1717498988433,2.65373,3768.3,3767.3,3.0]
[1717498988725,2.65373,3768.3,3767.4,0.04412304]
[1717498988922,2.3922,3768.4,3767.4,0.04412304]
[1717498989121,0.55620886,3768.3,3767.4,0.04412304]
[1717498989353,0.55620886,3768.3,3766.9,3.0]
[1717498989534,0.55620886,3768.3,3767.5,0.04412304]
[1717498989722,0.55620886,3768.3,3766.9,3.0]
[1717498989924,0.55620886,3768.3,3767.6,0.04477881]
[1717498990221,2.65389,3768.1,3767.7,0.04477881]
[1717498990419,2.65426,3767.6,3766.9,3.0]
[1717498990616,2.65426,3767.6,3767.0,0.04477881]
[1717498990870,2.65426,3767.6,3766.6,4.928]
[1717498991068,2.65426,3767.6,3766.7,0.04477881]
[1717498991269,2.65426,3767.6,3766.8,1.00162788]
[1717498991648,2.65426,3767.6,3766.9,0.04477881]
[1717498993079,2.65395,3768.0,3767.0,4.72]
[1717498993447,2.65395,3768.0,3767.1,0.04500448]
[1717498993672,2.65395,3768.0,3767.2,0.47650045]
[1717498994046,2.65395,3768.0,3767.3,0.04500448]
[1717499000254,2.65395,3768.0,3767.3,2.44910448]
[1717499005568,2.65371,3768.4,3767.4,1.928]
[1717499005792,2.65371,3768.4,3767.5,0.75080049]
[1717499005962,2.65371,3768.4,3767.5,0.79592197]
[1717499007702,2.65371,3768.4,3767.6,2.65419]
[1717499008210,2.65371,3768.4,3767.7,0.04502954]
[1717499015425,2.65386,3768.1,3767.7,0.04502954]
[1717499015730,2.65386,3768.1,3767.4,3.0]
[1717499015914,2.65386,3768.1,3767.8,0.04479971]
[1717499016107,2.65386,3768.1,3767.4,3.0]
[1717499016422,2.65386,3768.1,3767.9,0.04479971]
[1717499016575,2.65386,3768.1,3767.4,3.0]
[1717499016775,2.65386,3768.1,3768.0,0.04479971]
[1717499017010,2.65386,3768.1,3767.4,3.0]
[1717499017207,2.65386,3768.1,3768.0,0.04479971]
[1717499017417,2.65386,3768.1,3767.4,3.0]
[1717499017623,2.65386,3768.1,3768.0,0.04479971]
[1717499017831,2.65414,3767.7,3767.4,3.0]
[1717499021369,2.65414,3767.7,3767.3,7.32]
[1717499024260,2.65434,3767.5,3766.8,2.30616987]
[1717499026429,2.65434,3767.5,3766.9,0.92246654]
[1717499026651,2.65434,3767.5,3766.8,1.38369982]
[1717499026818,2.65434,3767.5,3766.8,2.30616629]
[1717499027730,4.95584,3767.5,3766.8,2.30616629]
[1717499027922,4.95584,3767.5,3766.9,0.92247407]
[1717499028127,4.95584,3767.5,3766.8,1.38371111]
[1717499028326,4.95584,3767.5,3766.8,2.30618412]
[1717499029552,2.65448,3767.3,3766.8,2.30618412]
[1717499030954,2.65448,3767.3,3766.8,3.8171498]
[1717499031151,2.65448,3767.3,3766.9,0.92247301]
[1717499032221,2.65448,3767.3,3767.0,0.04553532]
[1717499032958,2.65448,3767.3,3767.1,0.04575685]
[1717499033456,2.65448,3767.3,3766.8,2.89467679]
[1717499033655,2.65448,3767.3,3767.2,0.04575685]
[1717499034127,2.65448,3767.3,3766.9,1.07648395]
[1717499034333,2.65448,3767.3,3767.2,0.04575685]
[1717499034521,2.65448,3767.3,3766.9,1.07648395]
[1717499034723,2.65448,3767.3,3767.2,0.04575685]
[1717499034915,2.65448,3767.3,3766.9,1.07648395]
[1717499035144,2.65448,3767.3,3767.0,1.22988919]
[1717499039469,2.65414,3767.7,3767.0,1.22988919]
[1717499039961,2.65414,3767.7,3767.1,0.9223981]
[1717499040663,2.65414,3767.7,3767.2,0.04575685]
[1717499041361,2.65433,3767.5,3767.3,0.04575685]
[1717499041662,2.919763,3767.5,3767.3,0.04575685]
[1717499041867,2.65452,3767.2,3766.8,1.93387378]
[1717499042033,2.65452,3767.2,3766.7,7.32]
[1717499042361,2.65452,3767.2,3766.8,0.92248191]
[1717499042735,2.65452,3767.2,3766.7,7.32]
[1717499042963,2.65452,3767.2,3766.8,0.9224856]
[1717499043853,2.65452,3767.2,3766.7,7.32]
[1717499044231,2.65452,3767.2,3766.8,0.92248848]
[1717499044599,2.65452,3767.2,3766.7,7.32]
[1717499045471,3.164142,3767.2,3766.7,7.32]
[1717499046258,3.164142,3767.2,3766.5,0.804]
[1717499046458,2.6547,3766.9,3766.6,0.922518]
[1717499046663,2.6547,3766.9,3766.5,0.804]
[1717499046859,2.6547,3766.9,3766.6,0.9225187]
[1717499047181,2.6547,3766.9,3766.7,0.04591993]
[1717499047623,2.6547,3766.9,3766.5,0.804]
[1717499048074,2.6547,3766.9,3766.6,0.04591993]
[1717499049116,2.6547,3766.9,3766.7,0.04597429]
[1717499049341,2.6547,3766.9,3766.5,0.804]
[1717499049481,2.6547,3766.9,3766.8,0.04597011]
[1717499049679,2.6547,3766.9,3766.5,0.804]
[1717499050029,2.6547,3766.9,3766.6,0.04597011]
[1717499051497,2.65484,3766.7,3766.3,1.38377786]
[1717499051678,2.65484,3766.7,3766.4,0.04599938]
[1717499051974,2.65484,3766.7,3766.2,7.32]
[1717499052178,2.65484,3766.7,3766.5,0.04599938]
[1717499052418,2.65484,3766.7,3766.2,7.32]
[1717499052683,2.65484,3766.7,3766.3,0.804]
[1717499053045,2.65503,3766.5,3766.4,0.04599938]
[1717499053545,2.65503,3766.5,3766.4,0.04607466]
[1717499053846,2.65503,3766.5,3766.2,8.124]
[1717499054428,2.65503,3766.5,3766.3,0.04607466]
[1717499054784,2.65503,3766.5,3766.2,8.124]
[1717499055002,2.65503,3766.5,3766.4,0.04607466]
[1717499063250,2.65503,3766.5,3766.3,0.804]
[1717499063437,2.65503,3766.5,3766.4,0.04627123]
[1717499064744,2.65503,3766.5,3766.2,0.804]
[1717499064927,2.65503,3766.5,3766.4,0.04627123]
[1717499065128,2.65503,3766.5,3766.2,0.804]
[1717499065633,2.65503,3766.5,3766.4,0.804]
[1717499066182,2.65503,3766.5,3766.4,0.85027123]
[1717499067646,2.65503,3766.5,3766.4,0.04627123]
[1717499067860,2.65503,3766.5,3766.4,0.85027123]
[1717499069277,2.65503,3766.5,3766.4,0.04627123]
[1717499069649,2.65503,3766.5,3766.1,0.804]
[1717499069650,2.65517,3766.3,3766.1,0.804]
[1717499071889,2.65517,3766.3,3766.2,0.04657239]
[1717499072058,2.65517,3766.3,3766.2,0.85057239]
[1717499072255,2.65517,3766.3,3766.2,0.804]
[1717499072453,2.65517,3766.3,3766.2,0.85057239]
[1717499073803,2.65456,3767.1,3766.2,0.85057239]
[1717499073804,2.65492,3766.6,3766.2,0.85057239]
[1717499073945,2.65492,3766.6,3766.4,0.804]
[1717499074410,2.65492,3766.6,3766.5,0.04657239]
[1717499075855,2.65492,3766.6,3766.3,0.804]
[1717499076070,2.65492,3766.6,3766.5,0.04657239]
[1717499076247,2.65492,3766.6,3766.3,0.804]
[1717499076448,2.65492,3766.6,3766.5,0.04657239]
[1717499076645,2.65492,3766.6,3766.3,0.804]
[1717499076840,2.65492,3766.6,3766.5,0.04657239]
[1717499077047,2.65492,3766.6,3766.3,0.804]
[1717499077247,2.65492,3766.6,3766.5,0.04657239]
[1717499077494,2.65492,3766.6,3766.3,0.804]
[1717499077697,2.65492,3766.6,3766.5,0.04657239]
[1717499077905,2.65492,3766.6,3766.3,0.804]
[1717499078103,2.65492,3766.6,3766.5,0.04657239]
[1717499078274,2.65492,3766.6,3766.1,1.38395456]
[1717499078601,2.65492,3766.6,3766.4,0.804]
[1717499079176,2.65492,3766.6,3766.5,0.04656819]
[1717499084173,2.65492,3766.6,3766.3,0.804]
[1717499084370,2.65492,3766.6,3766.5,0.04656819]
[1717499084608,2.65492,3766.6,3766.3,0.804]
[1717499084903,2.65492,3766.6,3766.5,0.04656819]
[1717499085394,2.65492,3766.6,3766.3,0.804]
[1717499085607,2.65492,3766.6,3766.5,0.04656819]
[1717499085773,2.65492,3766.6,3766.3,0.804]
[1717499085967,2.65492,3766.6,3766.5,0.04656819]
[1717499086170,2.65492,3766.6,3766.3,0.804]
[1717499086376,2.65492,3766.6,3766.5,0.04656819]
[1717499086571,2.65519,3766.2,3766.1,1.38396292]
[1717499086809,5.08789,3766.2,3766.1,0.9226657]
[1717499087022,2.65539,3766.0,3765.7,2.73812559]
[1717499087288,2.65539,3766.0,3765.8,0.92276909]
[1717499088194,2.65539,3766.0,3765.9,0.92276909]
[1717499088416,2.65539,3766.0,3765.8,0.92276909]
[1717499088719,2.65539,3766.0,3765.9,0.92276909]
[1717499089119,2.65539,3766.0,3765.8,0.92276909]
[1717499089294,2.65539,3766.0,3765.9,0.92276909]
[1717499090136,2.65539,3766.0,3765.8,2.30673201]
[1717499090305,2.65539,3766.0,3765.9,0.92276909]
[1717499090633,2.65539,3766.0,3765.9,1.72676909]
[1717499094594,2.65539,3766.0,3765.9,0.92276909]
[1717499094808,2.65539,3766.0,3765.9,1.72676909]
[1717499095208,2.65514,3766.3,3765.9,3.11073201]
[1717499095409,2.65514,3766.3,3766.0,0.92276909]
[1717499096217,2.65514,3766.3,3765.9,2.18796292]
[1717499096540,2.65514,3766.3,3766.0,0.92274216]
[1717499096944,2.65514,3766.3,3765.9,2.18796292]
[1717499097113,2.65514,3766.3,3766.0,0.9227422]
[1717499097316,2.65514,3766.3,3766.1,0.9227422]
[1717499097517,2.65514,3766.3,3765.9,2.18796292]
[1717499097717,2.65514,3766.3,3766.0,0.92274225]
[1717499098016,2.65514,3766.3,3766.1,0.92274225]
[1717499098217,2.65514,3766.3,3765.9,2.18796292]
[1717499098434,2.65514,3766.3,3766.0,0.92273676]
[1717499098617,2.65514,3766.3,3766.1,0.92273676]
[1717499098828,2.65514,3766.3,3765.9,2.18796292]
[1717499099146,2.65514,3766.3,3766.0,0.92273666]
[1717499099447,2.65514,3766.3,3766.1,0.92273666]
[1717499099647,2.65514,3766.3,3765.9,2.18796292]
[1717499099806,2.65514,3766.3,3766.0,0.92273675]
[1717499100007,2.65514,3766.3,3766.1,0.92273675]
[1717499100229,2.65514,3766.3,3765.9,2.18810512]
[1717499100431,2.65514,3766.3,3766.0,0.92273666]
[1717499100635,2.65514,3766.3,3766.1,0.92273666]
[1717499100813,2.65514,3766.3,3765.9,2.18810512]
[1717499101012,2.65514,3766.3,3766.0,0.92273161]
[1717499101206,2.65514,3766.3,3766.1,0.92273161]
[1717499102039,2.65514,3766.3,3766.2,0.04678155]
[1717499102647,2.65514,3766.3,3766.0,1.38410512]
[1717499102933,2.65514,3766.3,3766.2,0.04678155]
[1717499103768,2.65514,3766.3,3766.0,1.38410512]
[1717499103949,2.65514,3766.3,3766.2,0.04678155]
[1717499104839,2.65514,3766.3,3766.0,1.38410512]
[1717499105041,2.65514,3766.3,3766.2,0.04678155]
[1717499105257,2.65514,3766.3,3766.0,1.38410512]
[1717499105431,2.65514,3766.3,3766.2,0.04678155]
[1717499105770,2.65514,3766.3,3766.0,1.38410512]
[1717499105943,2.65514,3766.3,3766.2,0.04678155]
[1717499106143,2.65514,3766.3,3766.0,1.38410512]
[1717499106441,2.65514,3766.3,3766.1,0.92272625]
[1717499106752,2.65514,3766.3,3766.1,0.04678155]
[1717499107066,2.65514,3766.3,3766.0,1.38409247]
[1717499107357,2.65514,3766.3,3766.2,0.04678155]
[1717499107529,2.65514,3766.3,3766.0,1.38409247]
[1717499107731,2.65514,3766.3,3766.2,0.04678155]
[1717499107933,2.65514,3766.3,3766.0,1.38409247]
[1717499108132,2.65514,3766.3,3766.2,0.04678155]
[1717499108762,2.65514,3766.3,3766.0,1.38409247]
[1717499108969,2.65514,3766.3,3766.2,0.04678155]
[1717499109163,2.65514,3766.3,3766.0,1.38409247]
[1717499109353,2.65514,3766.3,3766.2,0.04678155]
[1717499109668,2.65514,3766.3,3766.0,1.38409247]
[1717499109974,2.65514,3766.3,3766.2,0.04678155]
[1717499110150,2.65514,3766.3,3766.0,1.38409247]
[1717499110468,2.65514,3766.3,3766.1,0.92272729]
[1717499110668,2.65514,3766.3,3766.1,0.96950884]
[1717499110966,2.65514,3766.3,3766.1,0.04678155]
[1717499111373,2.65514,3766.3,3765.9,2.18809247]
[1717499111531,2.65514,3766.3,3766.2,0.04678155]
[1717499111729,2.65514,3766.3,3765.9,2.18809247]
[1717499111935,2.65514,3766.3,3766.2,0.04678155]
[1717499112449,2.65514,3766.3,3765.9,1.38409247]
[1717499112655,2.65514,3766.3,3766.2,0.04678155]
[1717499112879,0.49496639,3766.3,3765.9,1.38409247]
[1717499113053,5.89011,3766.1,3766.0,0.922772]
[1717499113242,5.89011,3766.1,3765.7,1.93425514]
[1717499113243,2.65547,3765.8,3765.6,1.93425514]
[1717499113438,5.08627,3765.8,3765.7,1.38409247]
[1717499113643,5.675297,3765.8,3765.4,1.38409247]
[1717499113833,5.675297,3765.8,3765.5,0.92290689]
[1717499114178,5.675297,3765.8,3765.4,1.38409247]
[1717499114698,5.675297,3765.8,3765.3,1.38409247]
[1717499114858,5.08627,3765.8,3765.4,0.92292789]
[1717499115038,5.08627,3765.8,3765.5,0.92292789]
[1717499115388,5.08627,3765.8,3765.3,1.38409247]
[1717499115537,5.08627,3765.8,3765.4,0.9229155]
[1717499116608,5.08627,3765.8,3765.2,2.73825514]
[1717499116758,5.08627,3765.8,3765.3,0.92291341]
[1717499116959,2.65572,3765.5,3765.3,0.96680067]
[1717499117164,2.65572,3765.5,3765.3,0.04388726]
[1717499117585,2.4411,3765.4,3765.3,0.04388726]
[1717499119920,2.65572,3765.5,3765.3,0.04388726]
[1717499122585,2.46055195,3765.4,3765.3,0.04388726]
[1717499122946,2.4104,3765.4,3765.3,0.04388726]
[1717499127611,2.65572,3765.5,3765.3,0.04388726]
[1717499130958,2.65548,3765.8,3765.3,0.04388726]
[1717499131173,2.65548,3765.8,3765.5,0.804]
[1717499131458,7.96527,3766.1,3765.7,0.804]
[1717499131603,7.96527,3766.1,3766.0,0.804]
[1717499133639,5.82492863,3766.5,3766.0,0.804]
[1717499133950,2.65504,3766.5,3766.0,0.804]
[1717499134337,2.65504,3766.5,3766.2,0.804]
[1717499134535,0.0284239,3766.6,3766.4,0.804]
[1717499136962,0.0284239,3766.6,3766.1,0.804]
[1717499140236,0.0284239,3766.6,3766.3,0.804]
[1717499144989,0.0284239,3766.6,3766.4,0.804]
[1717499146598,0.0284239,3766.6,3766.4,3.168]
[1717499147096,0.0284239,3766.6,3766.5,2.65498]
[1717499147252,0.0284239,3766.6,3766.5,3.237278]
[1717499149056,0.00293096,3766.6,3766.5,4.15974001]
[1717499149258,0.00293096,3766.6,3766.5,5.5434286]
[1717499149483,0.00293096,3766.6,3766.5,4.15974001]
[1717499150091,0.00293096,3766.6,3766.5,5.54340417]
[1717499150290,0.00293096,3766.6,3766.5,6.53054001]
[1717499150680,0.00293096,3766.6,3766.5,7.91418073]
[1717499151066,0.00030225,3766.6,3766.5,10.91418073]
[1717499153271,0.00030225,3766.6,3766.5,10.33454001]
[1717499154510,0.00030225,3766.6,3766.5,9.412078]
[1717499161428,0.00030225,3766.6,3766.5,8.608078]
[1717499161597,0.00030225,3766.6,3766.5,9.412078]
[1717499167849,0.00030225,3766.6,3766.5,10.33444062]
[1717499169951,0.00030225,3766.6,3766.5,11.71797373]
[1717499171046,2.65407,3767.8,3767.1,2.65453]
[1717499171257,2.65407,3767.8,3767.6,0.804]
[1717499172154,2.65407,3767.8,3767.1,2.65453]
[1717499172359,2.65407,3767.8,3767.5,0.804]
[1717499173107,2.65423,3767.6,3766.7,9.97477]